[Event "November 21 Early 2023"]
[Site "https://www.chess.com"]
[Date "2023.11.21"]
[Round "11"]
[White "Golubev, Mikhail"]
[Black "LeoLV10"]
[Result "0-1"]
[Board "61"]
[TimeControl "180+1"]
[WhiteFideId "14100983"]
[WhiteElo "2352"]
[BlackElo "2522"]
[WhiteTeam "UKR"]
[WhiteClock "0:00:00"]
[BlackClock "0:00:15"]

1. e4 {[%clk 0:03:00]}  c6 {[%clk 0:02:59]} 2. Nf3 {[%clk 0:02:59]}  d5 {[%clk 0:03:00]} 3. Nc3 {[%clk 0:02:59]}  Bg4 {[%clk 0:02:59]} 4. h3 {[%clk 0:02:58]}  Bxf3 {[%clk 0:02:55]} 5. Qxf3 {[%clk 0:02:58]}  e6 {[%clk 0:02:55]} 6. d4 {[%clk 0:02:57]}  dxe4 {[%clk 0:02:48]} 7. Qxe4 {[%clk 0:02:56]}  Nf6 {[%clk 0:02:49]} 8. Qd3 {[%clk 0:02:54]}  Nbd7 {[%clk 0:02:49]} 9. Be2 {[%clk 0:02:54]}  Bd6 {[%clk 0:02:42]} 10. O-O {[%clk 0:02:54]}  O-O {[%clk 0:02:41]} 11. Ne4 {[%clk 0:02:49]}  Nxe4 {[%clk 0:02:40]} 12. Qxe4 {[%clk 0:02:49]}  Nf6 {[%clk 0:02:41]} 13. Qf3 {[%clk 0:02:37]}  Bc7 {[%clk 0:02:39]} 14. Bg5 {[%clk 0:02:30]}  Qxd4 {[%clk 0:02:26]} 15. Bxf6 {[%clk 0:02:25]}  Qxf6 {[%clk 0:02:27]} 16. Qxf6 {[%clk 0:02:24]}  gxf6 {[%clk 0:02:28]} 17. Rad1 {[%clk 0:02:24]}  Rfd8 {[%clk 0:02:23]} 18. Rxd8+ {[%clk 0:02:22]}  Rxd8 {[%clk 0:02:18]} 19. Rd1 {[%clk 0:02:22]}  Bd6 {[%clk 0:02:19]} 20. g3 {[%clk 0:02:04]}  Kf8 {[%clk 0:02:18]} 21. Kg2 {[%clk 0:02:03]}  Ke7 {[%clk 0:02:18]} 22. c3 {[%clk 0:01:56]}  b5 {[%clk 0:02:16]} 23. Bf3 {[%clk 0:01:52]}  Rc8 {[%clk 0:02:16]} 24. Kf1 {[%clk 0:01:51]}  a5 {[%clk 0:02:15]} 25. b3 {[%clk 0:01:44]}  c5 {[%clk 0:02:05]} 26. Be2 {[%clk 0:01:05]}  Rb8 {[%clk 0:01:53]} 27. Kg2 {[%clk 0:01:02]}  a4 {[%clk 0:01:46]} 28. Rb1 {[%clk 0:00:55]}  a3 {[%clk 0:01:42]} 29. Rd1 {[%clk 0:00:54]}  Be5 {[%clk 0:01:30]} 30. c4 {[%clk 0:00:53]}  b4 {[%clk 0:01:29]} 31. Bd3 {[%clk 0:00:43]}  Rd8 {[%clk 0:01:26]} 32. Bc2 {[%clk 0:00:41]}  Rh8 {[%clk 0:01:25]} 33. f4 {[%clk 0:00:41]}  Bd4 {[%clk 0:01:25]} 34. f5 {[%clk 0:00:39]}  h6 {[%clk 0:01:21]} 35. Kf3 {[%clk 0:00:39]}  Kd6 {[%clk 0:01:07]} 36. h4 {[%clk 0:00:31]}  exf5 {[%clk 0:00:58]} 37. Bxf5 {[%clk 0:00:27]}  Re8 {[%clk 0:00:58]} 38. Be4 {[%clk 0:00:27]}  f5 {[%clk 0:00:56]} 39. Bxf5 {[%clk 0:00:23]}  Re3+ {[%clk 0:00:56]} 40. Kf4 {[%clk 0:00:21]}  Re2 {[%clk 0:00:54]} 41. Bb1 {[%clk 0:00:20]}  Ke6 {[%clk 0:00:44]} 42. g4 {[%clk 0:00:20]}  Kf6 {[%clk 0:00:37]} 43. h5 {[%clk 0:00:18]}  Rf2+ {[%clk 0:00:31]} 44. Kg3 {[%clk 0:00:18]}  Re2 {[%clk 0:00:28]} 45. Rf1+ {[%clk 0:00:18]}  Ke7 {[%clk 0:00:28]} 46. Kf3 {[%clk 0:00:17]}  Re3+ {[%clk 0:00:27]} 47. Kf4 {[%clk 0:00:17]}  Rc3 {[%clk 0:00:20]} 48. Kf5 {[%clk 0:00:15]}  Re3 {[%clk 0:00:18]} 49. g5 {[%clk 0:00:12]}  Re5+ {[%clk 0:00:18]} 50. Kf4 {[%clk 0:00:11]}  Rxg5 {[%clk 0:00:18]} 51. Rh1 {[%clk 0:00:09]}  Kf6 {[%clk 0:00:17]} 52. Be4 {[%clk 0:00:07]}  Be5+ {[%clk 0:00:16]} 53. Kf3 {[%clk 0:00:07]}  Rg3+ {[%clk 0:00:17]} 54. Kf2 {[%clk 0:00:07]}  Rg4 {[%clk 0:00:17]} 55. Kf3 {[%clk 0:00:06]}  Rf4+ {[%clk 0:00:17]} 56. Ke3 {[%clk 0:00:07]}  Rg4 {[%clk 0:00:17]} 57. Rf1+ {[%clk 0:00:06]}  Ke7 {[%clk 0:00:17]} 58. Rf5 {[%clk 0:00:06]}  Bd4+ {[%clk 0:00:16]} 59. Kf3 {[%clk 0:00:05]}  Rg1 {[%clk 0:00:17]} 60. Bd5 {[%clk 0:00:00]}  f6 {[%clk 0:00:15]} 0-1

[Event "November 21 Early 2023"]
[Site "https://www.chess.com"]
[Date "2023.11.21"]
[Round "11"]
[White "Baches Garcia, Guillermo"]
[Black "Vlassov, Nikolai"]
[Result "0-1"]
[Board "62"]
[TimeControl "180+1"]
[WhiteFideId "2209764"]
[BlackFideId "4103360"]
[WhiteElo "2519"]
[BlackElo "2324"]
[WhiteTeam "ESP"]
[BlackTeam "FID"]
[WhiteClock "0:00:00"]
[BlackClock "0:00:39"]

1. d4 {[%clk 0:03:00]}  Nf6 {[%clk 0:02:59]} 2. Nf3 {[%clk 0:03:01]}  e6 {[%clk 0:02:59]} 3. Bg5 {[%clk 0:03:01]}  h6 {[%clk 0:02:59]} 4. Bh4 {[%clk 0:03:01]}  c5 {[%clk 0:02:59]} 5. e3 {[%clk 0:03:01]}  b6 {[%clk 0:02:59]} 6. Nbd2 {[%clk 0:03:01]}  Bb7 {[%clk 0:02:59]} 7. Bd3 {[%clk 0:02:59]}  g5 {[%clk 0:02:59]} 8. Bg3 {[%clk 0:02:58]}  g4 {[%clk 0:03:00]} 9. Ne5 {[%clk 0:02:48]}  h5 {[%clk 0:02:59]} 10. Qe2 {[%clk 0:02:23]}  Bxg2 {[%clk 0:02:52]} 11. Rg1 {[%clk 0:02:22]}  Bb7 {[%clk 0:02:52]} 12. O-O-O {[%clk 0:02:21]}  Be7 {[%clk 0:02:51]} 13. f4 {[%clk 0:02:15]}  d6 {[%clk 0:02:43]} 14. Nec4 {[%clk 0:02:12]}  b5 {[%clk 0:02:42]} 15. Na3 {[%clk 0:02:06]}  c4 {[%clk 0:02:42]} 16. Naxc4 {[%clk 0:01:56]}  bxc4 {[%clk 0:02:41]} 17. Bxc4 {[%clk 0:01:57]}  Ne4 {[%clk 0:02:33]} 18. Bb5+ {[%clk 0:01:40]}  Kf8 {[%clk 0:02:33]} 19. f5 {[%clk 0:01:32]}  exf5 {[%clk 0:02:27]} 20. Rdf1 {[%clk 0:01:28]}  Nxd2 {[%clk 0:02:25]} 21. Qxd2 {[%clk 0:01:28]}  Be4 {[%clk 0:02:07]} 22. Bd3 {[%clk 0:01:24]}  Nd7 {[%clk 0:02:07]} 23. Bxe4 {[%clk 0:01:21]}  fxe4 {[%clk 0:02:07]} 24. Rf5 {[%clk 0:01:21]}  Rh7 {[%clk 0:01:49]} 25. Rgf1 {[%clk 0:01:21]}  h4 {[%clk 0:01:48]} 26. Be1 {[%clk 0:01:10]}  Rb8 {[%clk 0:01:44]} 27. Qg2 {[%clk 0:01:07]}  Nf6 {[%clk 0:01:42]} 28. Bc3 {[%clk 0:01:04]}  Rc8 {[%clk 0:01:39]} 29. d5 {[%clk 0:01:01]}  Rxc3 {[%clk 0:01:38]} 30. bxc3 {[%clk 0:01:02]}  Rh6 {[%clk 0:01:29]} 31. Qd2 {[%clk 0:00:50]}  Qa5 {[%clk 0:01:27]} 32. Qd4 {[%clk 0:00:49]}  Kg7 {[%clk 0:01:18]} 33. Rg5+ {[%clk 0:00:33]}  Rg6 {[%clk 0:01:14]} 34. Rxg6+ {[%clk 0:00:22]}  fxg6 {[%clk 0:01:08]} 35. Rf4 {[%clk 0:00:18]}  Qxd5 {[%clk 0:01:00]} 36. Qxd5 {[%clk 0:00:11]}  Nxd5 {[%clk 0:01:00]} 37. Rxg4 {[%clk 0:00:11]}  Nxc3 {[%clk 0:00:57]} 38. Kd2 {[%clk 0:00:10]}  Bf6 {[%clk 0:00:57]} 39. a4 {[%clk 0:00:08]}  d5 {[%clk 0:00:57]} 40. a5 {[%clk 0:00:08]}  g5 {[%clk 0:00:54]} 41. a6 {[%clk 0:00:08]}  Kg6 {[%clk 0:00:53]} 42. Rg1 {[%clk 0:00:08]}  Nb5 {[%clk 0:00:46]} 43. h3 {[%clk 0:00:07]}  Nc7 {[%clk 0:00:45]} 44. Rb1 {[%clk 0:00:07]}  Nxa6 {[%clk 0:00:45]} 45. Rb7 {[%clk 0:00:07]}  g4 {[%clk 0:00:39]} 46. hxg4 {[%clk 0:00:06]}  h3 {[%clk 0:00:40]} 47. Rxa7 {[%clk 0:00:00]}  h2 {[%clk 0:00:39]} 0-1

[Event "November 21 Early 2023"]
[Site "https://www.chess.com"]
[Date "2023.11.21"]
[Round "11"]
[White "Bettalli, Francesco"]
[Black "Kuegel, Tobias"]
[Result "0-1"]
[Board "64"]
[TimeControl "180+1"]
[WhiteFideId "2816453"]
[BlackFideId "4636295"]
[WhiteElo "2226"]
[BlackElo "2213"]
[WhiteTeam "ITA"]
[BlackTeam "GER"]
[WhiteClock "0:01:44"]
[BlackClock "0:00:16"]

1. d4 {[%clk 0:03:00]}  Nf6 {[%clk 0:02:57]} 2. Nc3 {[%clk 0:03:00]}  d5 {[%clk 0:02:57]} 3. Bf4 {[%clk 0:03:00]}  c5 {[%clk 0:02:57]} 4. e3 {[%clk 0:03:00]}  cxd4 {[%clk 0:02:50]} 5. exd4 {[%clk 0:03:01]}  Bg4 {[%clk 0:02:49]} 6. Bb5+ {[%clk 0:02:59]}  Nc6 {[%clk 0:02:45]} 7. Nf3 {[%clk 0:02:59]}  e6 {[%clk 0:02:27]} 8. h3 {[%clk 0:02:59]}  Bxf3 {[%clk 0:02:24]} 9. Qxf3 {[%clk 0:03:00]}  Be7 {[%clk 0:02:00]} 10. O-O {[%clk 0:02:56]}  O-O {[%clk 0:01:57]} 11. Rad1 {[%clk 0:02:56]}  Qb6 {[%clk 0:01:51]} 12. Bxc6 {[%clk 0:02:50]}  Qxc6 {[%clk 0:01:32]} 13. Be5 {[%clk 0:02:44]}  b5 {[%clk 0:01:23]} 14. a3 {[%clk 0:02:37]}  a5 {[%clk 0:01:19]} 15. Qd3 {[%clk 0:02:32]}  b4 {[%clk 0:01:08]} 16. Qb5 {[%clk 0:02:23]}  Rfc8 {[%clk 0:00:56]} 17. Qxc6 {[%clk 0:02:19]}  Rxc6 {[%clk 0:00:56]} 18. Na4 {[%clk 0:02:12]}  bxa3 {[%clk 0:00:44]} 19. bxa3 {[%clk 0:02:12]}  Rxc2 {[%clk 0:00:43]} 20. Rc1 {[%clk 0:02:03]}  Rxc1 {[%clk 0:00:38]} 21. Rxc1 {[%clk 0:02:03]}  Bxa3 {[%clk 0:00:36]} 22. Rc7 {[%clk 0:02:03]}  Ne8 {[%clk 0:00:28]} 23. Rb7 {[%clk 0:02:01]}  Nd6 {[%clk 0:00:14]} 24. Bxd6 {[%clk 0:01:53]}  Bxd6 {[%clk 0:00:14]} 25. Nb6 {[%clk 0:01:53]}  Rb8 {[%clk 0:00:14]} 26. Rxb8+ {[%clk 0:01:46]}  Bxb8 {[%clk 0:00:15]} 27. Kf1 {[%clk 0:01:45]}  Ba7 {[%clk 0:00:15]} 28. Na4 {[%clk 0:01:43]}  Bxd4 {[%clk 0:00:15]} 29. f3 {[%clk 0:01:44]}  e5 {[%clk 0:00:15]} 30. Ke2 {[%clk 0:01:45]}  Kf8 {[%clk 0:00:15]} 31. Kd3 {[%clk 0:01:46]}  Ke7 {[%clk 0:00:16]} 32. Kc2 {[%clk 0:01:46]}  Kd6 {[%clk 0:00:16]} 33. Kd3 {[%clk 0:01:46]}  Kc6 {[%clk 0:00:16]} 34. Kc2 {[%clk 0:01:47]}  Kb5 {[%clk 0:00:17]} 35. Kb3 {[%clk 0:01:48]}  g5 {[%clk 0:00:16]} 36. g4 {[%clk 0:01:48]}  h6 {[%clk 0:00:16]} 37. Ka3 {[%clk 0:01:48]}  Kc4 {[%clk 0:00:16]} 38. Nb6+ {[%clk 0:01:44]}  Bxb6 {[%clk 0:00:16]} 0-1

[Event "November 21 Early 2023"]
[Site "https://www.chess.com"]
[Date "2023.11.21"]
[Round "11"]
[White "Pham, Le Thao Nguyen"]
[Black "Rodriguez Fontecha, Marcos"]
[Result "0-1"]
[Board "65"]
[TimeControl "180+1"]
[WhiteFideId "12401226"]
[BlackFideId "2256576"]
[WhiteElo "2261"]
[BlackElo "2249"]
[WhiteTeam "VIE"]
[BlackTeam "ESP"]
[WhiteClock "0:00:00"]
[BlackClock "0:00:20"]

1. d4 {[%clk 0:02:48]}  d5 {[%clk 0:02:59]} 2. c4 {[%clk 0:02:48]}  Nc6 {[%clk 0:03:00]} 3. e3 {[%clk 0:02:37]}  g6 {[%clk 0:02:55]} 4. Nc3 {[%clk 0:02:36]}  dxc4 {[%clk 0:02:54]} 5. Bxc4 {[%clk 0:02:37]}  Bg7 {[%clk 0:02:54]} 6. Nf3 {[%clk 0:02:35]}  Nf6 {[%clk 0:02:54]} 7. O-O {[%clk 0:02:35]}  O-O {[%clk 0:02:54]} 8. h3 {[%clk 0:02:36]}  a6 {[%clk 0:02:51]} 9. a3 {[%clk 0:02:30]}  b5 {[%clk 0:02:51]} 10. Ba2 {[%clk 0:02:30]}  Bb7 {[%clk 0:02:52]} 11. Bd2 {[%clk 0:01:41]}  e6 {[%clk 0:02:52]} 12. Rc1 {[%clk 0:01:41]}  Ne7 {[%clk 0:02:52]} 13. Qe2 {[%clk 0:01:32]}  Ra7 {[%clk 0:02:44]} 14. e4 {[%clk 0:01:23]}  Qa8 {[%clk 0:02:43]} 15. Rfe1 {[%clk 0:01:22]}  Rd8 {[%clk 0:02:36]} 16. Bf4 {[%clk 0:01:10]}  Ne8 {[%clk 0:02:29]} 17. Qe3 {[%clk 0:00:54]}  Nd6 {[%clk 0:02:15]} 18. Ne5 {[%clk 0:00:47]}  Nc6 {[%clk 0:01:44]} 19. Nxc6 {[%clk 0:00:36]}  Bxc6 {[%clk 0:01:45]} 20. f3 {[%clk 0:00:36]}  Nf5 {[%clk 0:01:37]} 21. exf5 {[%clk 0:00:32]}  Bxd4 {[%clk 0:01:36]} 22. fxe6 {[%clk 0:00:33]}  Bxe3+ {[%clk 0:01:14]} 23. Rxe3 {[%clk 0:00:33]}  Be8 {[%clk 0:01:05]} 24. Ne4 {[%clk 0:00:32]}  fxe6 {[%clk 0:00:57]} 25. Nf6+ {[%clk 0:00:26]}  Kg7 {[%clk 0:00:57]} 26. Be5 {[%clk 0:00:26]}  Bf7 {[%clk 0:00:38]} 27. Rec3 {[%clk 0:00:11]}  Kh6 {[%clk 0:00:30]} 28. Rxc7 {[%clk 0:00:08]}  Rxc7 {[%clk 0:00:28]} 29. Rxc7 {[%clk 0:00:09]}  Rf8 {[%clk 0:00:21]} 30. f4 {[%clk 0:00:00]}  Qd8 {[%clk 0:00:20]} 0-1

[Event "November 21 Early 2023"]
[Site "https://www.chess.com"]
[Date "2023.11.21"]
[Round "11"]
[White "GatoRojo150"]
[Black "Sreyas Payyappat"]
[Result "1-0"]
[Board "67"]
[TimeControl "180+1"]
[BlackFideId "46674969"]
[WhiteElo "2573"]
[BlackElo "2043"]
[BlackTeam "IND"]
[WhiteClock "0:00:26"]
[BlackClock "0:00:10"]

1. e4 {[%clk 0:03:00]}  c6 {[%clk 0:02:58]} 2. Nc3 {[%clk 0:03:00]}  d5 {[%clk 0:02:59]} 3. Nf3 {[%clk 0:03:00]}  dxe4 {[%clk 0:02:59]} 4. Nxe4 {[%clk 0:03:01]}  Nf6 {[%clk 0:03:00]} 5. Qe2 {[%clk 0:03:00]}  Nxe4 {[%clk 0:02:59]} 6. Qxe4 {[%clk 0:03:01]}  Nd7 {[%clk 0:03:00]} 7. Bc4 {[%clk 0:02:59]}  Nf6 {[%clk 0:03:01]} 8. Ne5 {[%clk 0:02:59]}  e6 {[%clk 0:03:00]} 9. Qe2 {[%clk 0:02:59]}  b5 {[%clk 0:02:58]} 10. Bd3 {[%clk 0:02:59]}  Qc7 {[%clk 0:02:53]} 11. b3 {[%clk 0:02:59]}  Bd6 {[%clk 0:02:52]} 12. Bb2 {[%clk 0:02:58]}  Bb7 {[%clk 0:02:51]} 13. O-O {[%clk 0:02:57]}  a6 {[%clk 0:02:51]} 14. f4 {[%clk 0:02:57]}  c5 {[%clk 0:02:50]} 15. c4 {[%clk 0:02:48]}  b4 {[%clk 0:02:44]} 16. Rae1 {[%clk 0:02:47]}  O-O-O {[%clk 0:02:44]} 17. Bc2 {[%clk 0:01:59]}  Rhf8 {[%clk 0:02:14]} 18. h3 {[%clk 0:01:38]}  Nd7 {[%clk 0:02:10]} 19. Qf2 {[%clk 0:01:29]}  f6 {[%clk 0:01:50]} 20. Nxd7 {[%clk 0:01:23]}  Qxd7 {[%clk 0:01:50]} 21. Be4 {[%clk 0:01:18]}  g5 {[%clk 0:01:45]} 22. Bxb7+ {[%clk 0:01:16]}  Qxb7 {[%clk 0:01:44]} 23. Rxe6 {[%clk 0:01:15]}  gxf4 {[%clk 0:01:37]} 24. Rfe1 {[%clk 0:01:06]}  Rg8 {[%clk 0:01:31]} 25. Kf1 {[%clk 0:00:53]}  Kb8 {[%clk 0:01:21]} 26. Bxf6 {[%clk 0:00:51]}  Rd7 {[%clk 0:01:14]} 27. Rxd6 {[%clk 0:00:51]}  Rxd6 {[%clk 0:01:08]} 28. Be5 {[%clk 0:00:51]}  Qc6 {[%clk 0:01:06]} 29. Re2 {[%clk 0:00:39]}  Ka7 {[%clk 0:00:55]} 30. Bxd6 {[%clk 0:00:39]}  Qxd6 {[%clk 0:00:56]} 31. Qf3 {[%clk 0:00:36]}  Qf6 {[%clk 0:00:40]} 32. Qe4 {[%clk 0:00:30]}  Rg7 {[%clk 0:00:30]} 33. Qe5 {[%clk 0:00:30]}  Qg6 {[%clk 0:00:18]} 34. Qxc5+ {[%clk 0:00:27]}  Kb8 {[%clk 0:00:17]} 35. Qe5+ {[%clk 0:00:26]}  Ka7 {[%clk 0:00:14]} 36. Qd4+ {[%clk 0:00:26]}  Ka8 {[%clk 0:00:10]} 37. Qe4+ {[%clk 0:00:26]} 1-0

[Event "November 21 Early 2023"]
[Site "https://www.chess.com"]
[Date "2023.11.21"]
[Round "11"]
[White "Zaksaite, Salomeja"]
[Black "Tikhonov, Viacheslav"]
[Result "0-1"]
[Board "70"]
[TimeControl "180+1"]
[WhiteFideId "12801496"]
[BlackFideId "44196407"]
[WhiteElo "2065"]
[BlackElo "2191"]
[WhiteTeam "LTU"]
[BlackTeam "RUS"]
[WhiteClock "0:00:00"]
[BlackClock "0:00:02"]

1. e4 {[%clk 0:03:00]}  c5 {[%clk 0:02:59]} 2. Nf3 {[%clk 0:02:59]}  g6 {[%clk 0:02:59]} 3. d4 {[%clk 0:02:55]}  cxd4 {[%clk 0:03:00]} 4. Nxd4 {[%clk 0:02:56]}  Nc6 {[%clk 0:03:00]} 5. Nb3 {[%clk 0:02:55]}  Bg7 {[%clk 0:03:00]} 6. Be2 {[%clk 0:02:55]}  Nf6 {[%clk 0:03:00]} 7. Nc3 {[%clk 0:02:54]}  O-O {[%clk 0:03:00]} 8. O-O {[%clk 0:02:55]}  d6 {[%clk 0:03:00]} 9. Bg5 {[%clk 0:02:55]}  Be6 {[%clk 0:02:52]} 10. f4 {[%clk 0:02:50]}  Qb6+ {[%clk 0:02:28]} 11. Kh1 {[%clk 0:02:49]}  Rfe8 {[%clk 0:02:27]} 12. Bf3 {[%clk 0:02:35]}  Na5 {[%clk 0:02:20]} 13. Nd5 {[%clk 0:02:32]}  Bxd5 {[%clk 0:02:12]} 14. exd5 {[%clk 0:02:32]}  Nc4 {[%clk 0:02:09]} 15. Qd4 {[%clk 0:02:17]}  Qxd4 {[%clk 0:01:47]} 16. Nxd4 {[%clk 0:02:18]}  Nd2 {[%clk 0:01:48]} 17. Rfd1 {[%clk 0:02:13]}  Nxf3 {[%clk 0:01:46]} 18. Nxf3 {[%clk 0:02:13]}  Ne4 {[%clk 0:01:42]} 19. Rf1 {[%clk 0:01:39]}  Bxb2 {[%clk 0:01:42]} 20. Rab1 {[%clk 0:01:39]}  Nxg5 {[%clk 0:01:42]} 21. fxg5 {[%clk 0:01:23]}  Bg7 {[%clk 0:01:22]} 22. Rxb7 {[%clk 0:01:24]}  a5 {[%clk 0:01:18]} 23. Re1 {[%clk 0:01:16]}  Kf8 {[%clk 0:01:15]} 24. Rc7 {[%clk 0:00:51]}  a4 {[%clk 0:01:08]} 25. c4 {[%clk 0:00:48]}  a3 {[%clk 0:01:04]} 26. h4 {[%clk 0:00:47]}  Rab8 {[%clk 0:00:29]} 27. Re3 {[%clk 0:00:41]}  Rb1+ {[%clk 0:00:24]} 28. Kh2 {[%clk 0:00:39]}  Bb2 {[%clk 0:00:24]} 29. Ne1 {[%clk 0:00:16]}  Ra1 {[%clk 0:00:18]} 30. Nc2 {[%clk 0:00:15]}  Rxa2 {[%clk 0:00:15]} 31. Nb4 {[%clk 0:00:06]}  Ra1 {[%clk 0:00:15]} 32. Ra7 {[%clk 0:00:06]}  Rc1 {[%clk 0:00:08]} 33. Re4 {[%clk 0:00:04]}  Rc3 {[%clk 0:00:04]} 34. Nc6 {[%clk 0:00:03]}  Rc2 {[%clk 0:00:02]} 35. Nb4 {[%clk 0:00:03]}  Rd2 {[%clk 0:00:02]} 36. Kh3 {[%clk 0:00:03]}  Be5 {[%clk 0:00:03]} 37. Nc6 {[%clk 0:00:02]}  Bb2 {[%clk 0:00:03]} 38. Nb4 {[%clk 0:00:02]}  Rf2 {[%clk 0:00:03]} 39. Kg3 {[%clk 0:00:02]}  Rf1 {[%clk 0:00:02]} 40. Nc6 {[%clk 0:00:02]}  Rc1 {[%clk 0:00:03]} 41. Nb4 {[%clk 0:00:02]}  Rc3+ {[%clk 0:00:04]} 42. Kh2 {[%clk 0:00:02]}  Rb3 {[%clk 0:00:02]} 43. Nc6 {[%clk 0:00:01]}  Rb6 {[%clk 0:00:01]} 44. Ra4 {[%clk 0:00:01]}  Rd8 {[%clk 0:00:01]} 45. Na7 {[%clk 0:00:01]}  Ra8 {[%clk 0:00:01]} 46. Nc6 {[%clk 0:00:00]}  Rxa4 {[%clk 0:00:02]} 0-1

[Event "November 21 Early 2023"]
[Site "https://www.chess.com"]
[Date "2023.11.21"]
[Round "11"]
[White "Spata, German"]
[Black "Cruz Mendez, Jean Marco"]
[Result "1-0"]
[Board "73"]
[TimeControl "180+1"]
[WhiteFideId "113026"]
[BlackFideId "3526402"]
[WhiteElo "2260"]
[BlackElo "2064"]
[WhiteTeam "ARG"]
[BlackTeam "CUB"]
[WhiteClock "0:01:05"]
[BlackClock "0:00:50"]

1. e4 {[%clk 0:02:49]}  e5 {[%clk 0:02:58]} 2. Nc3 {[%clk 0:02:48]}  Nc6 {[%clk 0:02:58]} 3. f4 {[%clk 0:02:46]}  exf4 {[%clk 0:02:58]} 4. d4 {[%clk 0:02:46]}  Qh4+ {[%clk 0:02:57]} 5. Ke2 {[%clk 0:02:46]}  d6 {[%clk 0:02:53]} 6. Nf3 {[%clk 0:02:45]}  Bg4 {[%clk 0:02:52]} 7. Bxf4 {[%clk 0:02:32]}  Bxf3+ {[%clk 0:02:42]} 8. Kxf3 {[%clk 0:02:32]}  Nf6 {[%clk 0:02:41]} 9. g3 {[%clk 0:02:22]}  Qg4+ {[%clk 0:02:04]} 10. Kf2 {[%clk 0:02:19]}  Qxd1 {[%clk 0:02:04]} 11. Rxd1 {[%clk 0:02:19]}  O-O-O {[%clk 0:02:05]} 12. Bc4 {[%clk 0:02:15]}  Rd7 {[%clk 0:02:01]} 13. Kf3 {[%clk 0:02:15]}  g6 {[%clk 0:01:55]} 14. e5 {[%clk 0:02:06]}  dxe5 {[%clk 0:01:35]} 15. dxe5 {[%clk 0:02:07]}  Nh5 {[%clk 0:01:27]} 16. Rxd7 {[%clk 0:02:02]}  Kxd7 {[%clk 0:01:26]} 17. Bxf7 {[%clk 0:01:58]}  Bg7 {[%clk 0:01:24]} 18. e6+ {[%clk 0:01:51]}  Kc8 {[%clk 0:01:23]} 19. Rd1 {[%clk 0:01:44]}  Bxc3 {[%clk 0:01:11]} 20. bxc3 {[%clk 0:01:43]}  Rf8 {[%clk 0:01:11]} 21. Bh6 {[%clk 0:01:30]}  Rd8 {[%clk 0:01:08]} 22. Rxd8+ {[%clk 0:01:27]}  Kxd8 {[%clk 0:01:09]} 23. Ke4 {[%clk 0:01:25]}  Ke7 {[%clk 0:01:07]} 24. Bg5+ {[%clk 0:01:24]}  Kd6 {[%clk 0:00:59]} 25. g4 {[%clk 0:01:15]}  Ng7 {[%clk 0:00:57]} 26. Bf4+ {[%clk 0:01:14]}  Ke7 {[%clk 0:00:56]} 27. Kd5 {[%clk 0:01:05]}  Nd8 {[%clk 0:00:50]} 28. Bg5+ {[%clk 0:01:05]} 1-0

[Event "November 21 Early 2023"]
[Site "https://www.chess.com"]
[Date "2023.11.21"]
[Round "11"]
[White "gueraumasague"]
[Black "Kochiev, Ivan"]
[Result "1-0"]
[Board "75"]
[TimeControl "180+1"]
[BlackFideId "2917890"]
[WhiteElo "2586"]
[BlackElo "2285"]
[BlackTeam "BUL"]
[WhiteClock "0:00:11"]
[BlackClock "0:00:02"]

1. e4 {[%clk 0:03:00]}  e5 {[%clk 0:02:51]} 2. Nc3 {[%clk 0:03:01]}  Nc6 {[%clk 0:02:50]} 3. f4 {[%clk 0:03:02]}  exf4 {[%clk 0:02:46]} 4. d4 {[%clk 0:03:02]}  d6 {[%clk 0:02:41]} 5. Bxf4 {[%clk 0:03:00]}  Nf6 {[%clk 0:02:40]} 6. Qd2 {[%clk 0:02:54]}  Bg4 {[%clk 0:02:40]} 7. h3 {[%clk 0:02:53]}  Bh5 {[%clk 0:02:40]} 8. g4 {[%clk 0:02:28]}  Bg6 {[%clk 0:02:40]} 9. Bg2 {[%clk 0:02:28]}  h6 {[%clk 0:02:25]} 10. O-O-O {[%clk 0:02:27]}  Qd7 {[%clk 0:02:19]} 11. Nge2 {[%clk 0:02:06]}  O-O-O {[%clk 0:02:18]} 12. Ng3 {[%clk 0:02:05]}  h5 {[%clk 0:02:01]} 13. g5 {[%clk 0:02:02]}  h4 {[%clk 0:02:02]} 14. Nge2 {[%clk 0:01:34]}  Nh5 {[%clk 0:01:48]} 15. Be3 {[%clk 0:01:33]}  a6 {[%clk 0:01:41]} 16. d5 {[%clk 0:01:27]}  Nb8 {[%clk 0:01:23]} 17. Qd4 {[%clk 0:01:22]}  b6 {[%clk 0:01:01]} 18. a4 {[%clk 0:01:18]}  a5 {[%clk 0:00:50]} 19. Qc4 {[%clk 0:01:18]}  Kb7 {[%clk 0:00:47]} 20. Nd4 {[%clk 0:01:19]}  Re8 {[%clk 0:00:29]} 21. Rhe1 {[%clk 0:01:17]}  Ng3 {[%clk 0:00:27]} 22. Bf4 {[%clk 0:00:51]}  Re5 {[%clk 0:00:21]} 23. Kb1 {[%clk 0:00:49]}  Be7 {[%clk 0:00:18]} 24. Nf3 {[%clk 0:00:48]}  Bh5 {[%clk 0:00:16]} 25. Bxe5 {[%clk 0:00:47]}  Bxf3 {[%clk 0:00:14]} 26. Bxf3 {[%clk 0:00:41]}  dxe5 {[%clk 0:00:14]} 27. Bg4 {[%clk 0:00:41]}  Qd8 {[%clk 0:00:11]} 28. Nb5 {[%clk 0:00:39]}  Bd6 {[%clk 0:00:09]} 29. Re3 {[%clk 0:00:34]}  Na6 {[%clk 0:00:07]} 30. Qc6+ {[%clk 0:00:31]}  Kb8 {[%clk 0:00:05]} 31. Rc3 {[%clk 0:00:22]}  Nxe4 {[%clk 0:00:05]} 32. Rc4 {[%clk 0:00:22]}  Nb4 {[%clk 0:00:03]} 33. Rxb4 {[%clk 0:00:18]}  Bxb4 {[%clk 0:00:02]} 34. c3 {[%clk 0:00:14]}  Bc5 {[%clk 0:00:02]} 35. d6 {[%clk 0:00:13]}  Nxd6 {[%clk 0:00:02]} 36. Nxd6 {[%clk 0:00:11]}  Qxd6 {[%clk 0:00:02]} 37. Rxd6 {[%clk 0:00:11]}  Bxd6 {[%clk 0:00:03]} 38. Bf3 {[%clk 0:00:11]}  Kc8 {[%clk 0:00:02]} 39. Qa8+ {[%clk 0:00:11]} 1-0